[Event "*** Titled Tuesday Blitz"]
[Site "Chess.com"]
[Date "2020.04.28"]
[Round "9"]
[White "grunbergmihai"]
[Black "eldur16"]
[Result "1/2-1/2"]
[WhiteElo "2417"]
[BlackElo "2568"]
[TimeControl "180+1"]
[EndTime "11:47:07 PDT"]
[Termination "Game drawn by agreement"]

1. Nf3 {[%clk 0:03:00.9]} 1... Nf6 {[%clk 0:02:59.3]} 2. c4 {[%clk 0:03:00.3]}
2... g6 {[%clk 0:02:59.1]} 3. g3 {[%clk 0:02:59.7]} 3... Bg7 {[%clk 0:02:58.2]}
4. Bg2 {[%clk 0:03:00.6]} 4... O-O {[%clk 0:02:57.2]} 5. O-O {[%clk 0:03:01.5]}
5... d5 {[%clk 0:02:55.7]} 6. cxd5 {[%clk 0:03:00.3]} 6... Nxd5 {[%clk
0:02:55.7]} 7. d4 {[%clk 0:03:00.8]} 7... Nb6 {[%clk 0:02:55.6]} 8. Nc3 {[%clk
0:03:00.2]} 8... Nc6 {[%clk 0:02:55.6]} 9. e3 {[%clk 0:03:00.1]} 9... Re8 {[%clk
0:02:55.7]} 10. Re1 {[%clk 0:03:00]} 10... a5 {[%clk 0:02:54.9]} 11. d5 {[%clk
0:02:56.9]} 11... Nb4 {[%clk 0:02:47.8]} 12. e4 {[%clk 0:02:55.8]} 12... c6
{[%clk 0:02:43.8]} 13. a3 {[%clk 0:02:48]} 13... Na6 {[%clk 0:02:43.3]} 14. dxc6
{[%clk 0:02:42.9]} 14... Qxd1 {[%clk 0:02:35.4]} 15. Rxd1 {[%clk 0:02:41.6]}
15... bxc6 {[%clk 0:02:35.5]} 16. Nd4 {[%clk 0:02:24.8]} 16... Bd7 {[%clk
0:02:23.4]} 17. Bf1 {[%clk 0:02:17]} 17... e5 {[%clk 0:02:03.9]} 18. Nb3 {[%clk
0:02:09.6]} 18... Bg4 {[%clk 0:02:02.3]} 19. Be2 {[%clk 0:02:01]} 19... Bxe2
{[%clk 0:02:00.8]} 20. Nxe2 {[%clk 0:02:01.9]} 20... a4 {[%clk 0:01:58.3]} 21.
Na5 {[%clk 0:01:52.7]} 21... Nc5 {[%clk 0:01:54.7]} 22. Nxc6 {[%clk 0:01:50.7]}
22... Nxe4 {[%clk 0:01:53.7]} 23. Nb4 {[%clk 0:01:26.9]} 23... Rac8 {[%clk
0:01:45.1]} 24. f3 {[%clk 0:01:13.8]} 24... Nc5 {[%clk 0:01:44.1]} 25. Be3
{[%clk 0:01:11.2]} 25... Nc4 {[%clk 0:01:41.3]} 26. Bxc5 {[%clk 0:01:09.8]}
26... Rxc5 {[%clk 0:01:40.6]} 27. Rac1 {[%clk 0:01:09]} 27... Rcc8 {[%clk
0:01:35.2]} 28. Rc2 {[%clk 0:01:01.3]} 28... e4 {[%clk 0:01:19]} 29. fxe4 {[%clk
0:01:00.8]} 29... Nxb2 {[%clk 0:01:09.1]} 30. Rxc8 {[%clk 0:00:58.9]} 30... Rxc8
{[%clk 0:01:08.4]} 31. Rd7 {[%clk 0:00:57]} 31... Nc4 {[%clk 0:01:04.6]} 32. Ra7
{[%clk 0:00:53.2]} 32... Nxa3 {[%clk 0:01:02.2]} 33. Rxa4 {[%clk 0:00:52.9]}
33... Nb5 {[%clk 0:00:51.1]} 34. Nd5 {[%clk 0:00:51.1]} 34... Rc2 {[%clk
0:00:43.6]} 35. Ra8+ {[%clk 0:00:46.7]} 35... Bf8 {[%clk 0:00:43.4]} 36. Kf1
{[%clk 0:00:41.3]} 36... Nd6 {[%clk 0:00:40.7]} 37. e5 {[%clk 0:00:33.5]} 37...
Nf5 {[%clk 0:00:40.4]} 38. g4 {[%clk 0:00:27.3]} 38... Nh4 {[%clk 0:00:34.9]}
39. h3 {[%clk 0:00:23.9]} 39... Kg7 {[%clk 0:00:33.7]} 40. Nf6 {[%clk
0:00:21.9]} 40... Nf3 {[%clk 0:00:29.7]} 41. Ne8+ {[%clk 0:00:20.6]} 41... Kh6
{[%clk 0:00:27.3]} 42. Nd6 {[%clk 0:00:20.1]} 42... Bxd6 {[%clk 0:00:20.5]} 43.
exd6 {[%clk 0:00:20]} 43... Rd2 {[%clk 0:00:20.6]} 44. Rd8 {[%clk 0:00:17.6]}
44... Kg7 {[%clk 0:00:19.6]} 45. Ng3 {[%clk 0:00:13.7]} 45... Nd4 {[%clk
0:00:17.6]} 46. Ne4 {[%clk 0:00:12.5]} 46... Rd1+ {[%clk 0:00:15.2]} 47. Kf2
{[%clk 0:00:12]} 47... f5 {[%clk 0:00:13.9]} 48. Ng5 {[%clk 0:00:09.5]} 48... h6
{[%clk 0:00:12.6]} 49. Nf3 {[%clk 0:00:08]} 49... Nxf3 {[%clk 0:00:12.1]} 50.
Kxf3 {[%clk 0:00:08]} 50... Kf6 {[%clk 0:00:11.7]} 51. gxf5 {[%clk 0:00:07.7]}
51... gxf5 {[%clk 0:00:11.4]} 52. d7 {[%clk 0:00:07.1]} 52... Ke7 {[%clk
0:00:10.9]} 53. Rh8 {[%clk 0:00:06.8]} 53... Rxd7 {[%clk 0:00:10.5]} 54. Rxh6
{[%clk 0:00:06.6]} 54... Rd4 {[%clk 0:00:09.9]} 1/2-1/2

[Event "*** Titled Tuesday Blitz"]
[Site "Chess.com"]
[Date "2020.04.28"]
[Round "9"]
[White "silverback96"]
[Black "MariaFominykh"]
[Result "0-1"]
[WhiteElo "2129"]
[BlackElo "2390"]
[TimeControl "180+1"]
[EndTime "11:47:07 PDT"]
[Termination "MariaFominykh won by checkmate"]

1. e4 {[%clk 0:03:00.9]} 1... d6 {[%clk 0:02:59.9]} 2. d4 {[%clk 0:03:00.2]}
2... Nf6 {[%clk 0:03:00.6]} 3. Nc3 {[%clk 0:02:43.3]} 3... e5 {[%clk 0:03:00.9]}
4. Nf3 {[%clk 0:02:39]} 4... Nbd7 {[%clk 0:03:00.4]} 5. Bc4 {[%clk 0:02:36.3]}
5... Be7 {[%clk 0:03:00.3]} 6. O-O {[%clk 0:02:34.8]} 6... O-O {[%clk
0:03:00.3]} 7. h3 {[%clk 0:02:33.1]} 7... c6 {[%clk 0:03:00.3]} 8. a4 {[%clk
0:02:32.3]} 8... b6 {[%clk 0:02:59.9]} 9. Be3 {[%clk 0:02:28.9]} 9... a6 {[%clk
0:02:59.7]} 10. Qd2 {[%clk 0:02:24]} 10... Rb8 {[%clk 0:02:57]} 11. Bd3 {[%clk
0:02:11.7]} 11... b5 {[%clk 0:02:53.7]} 12. axb5 {[%clk 0:02:11.5]} 12... axb5
{[%clk 0:02:50]} 13. Ne2 {[%clk 0:02:01.5]} 13... Re8 {[%clk 0:02:45]} 14. Ng3
{[%clk 0:01:59.3]} 14... g6 {[%clk 0:02:42.5]} 15. Ra7 {[%clk 0:01:41]} 15...
Bf8 {[%clk 0:02:32.8]} 16. Rfa1 {[%clk 0:01:40.2]} 16... Bb7 {[%clk 0:02:32]}
17. Bf1 {[%clk 0:01:04.4]} 17... exd4 {[%clk 0:02:21.5]} 18. Qxd4 {[%clk
0:00:57.8]} 18... c5 {[%clk 0:02:04.4]} 19. Qd2 {[%clk 0:00:55.1]} 19... Nxe4
{[%clk 0:02:01.3]} 20. Nxe4 {[%clk 0:00:54.3]} 20... Bxe4 {[%clk 0:02:01.3]} 21.
Bg5 {[%clk 0:00:49.3]} 21... f6 {[%clk 0:01:53]} 22. Bf4 {[%clk 0:00:45.2]}
22... Ne5 {[%clk 0:01:45.8]} 23. Be2 {[%clk 0:00:26.6]} 23... Re7 {[%clk
0:01:39.1]} 24. Be3 {[%clk 0:00:16.2]} 24... Rxa7 {[%clk 0:01:34.5]} 25. Rxa7
{[%clk 0:00:15.8]} 25... Qb6 {[%clk 0:01:29.1]} 26. Ra3 {[%clk 0:00:10]} 26...
Nxf3+ {[%clk 0:01:22.8]} 27. Bxf3 {[%clk 0:00:09.8]} 27... Bxf3 {[%clk
0:01:22.1]} 28. gxf3 {[%clk 0:00:10.7]} 28... Qb7 {[%clk 0:01:13.1]} 29. Kg2
{[%clk 0:00:10.4]} 29... Ra8 {[%clk 0:01:05.2]} 30. Rxa8 {[%clk 0:00:10.9]}
30... Qxa8 {[%clk 0:01:04.8]} 31. Bh6 {[%clk 0:00:08.5]} 31... Bxh6 {[%clk
0:01:00.5]} 32. Qxh6 {[%clk 0:00:09.4]} 32... Qd5 {[%clk 0:00:58.9]} 33. Qe3
{[%clk 0:00:09.8]} 33... Qg5+ {[%clk 0:00:57.6]} 34. Qxg5 {[%clk 0:00:10]} 34...
fxg5 {[%clk 0:00:57.7]} 35. Kg3 {[%clk 0:00:10.9]} 35... Kf7 {[%clk 0:00:56.6]}
36. Kg4 {[%clk 0:00:11.8]} 36... h6 {[%clk 0:00:54.9]} 37. f4 {[%clk 0:00:12.2]}
37... gxf4 {[%clk 0:00:54.2]} 38. Kxf4 {[%clk 0:00:13.1]} 38... Ke6 {[%clk
0:00:52.4]} 39. Ke4 {[%clk 0:00:13.9]} 39... d5+ {[%clk 0:00:52.1]} 40. Ke3
{[%clk 0:00:13.2]} 40... Ke5 {[%clk 0:00:51.6]} 41. c3 {[%clk 0:00:13.3]} 41...
d4+ {[%clk 0:00:48.4]} 42. cxd4+ {[%clk 0:00:13.5]} 42... cxd4+ {[%clk
0:00:48.5]} 43. Kd3 {[%clk 0:00:13.7]} 43... Kd5 {[%clk 0:00:48.6]} 44. h4
{[%clk 0:00:13.5]} 44... g5 {[%clk 0:00:46.1]} 45. h5 {[%clk 0:00:10.7]} 45...
Ke5 {[%clk 0:00:43.3]} 46. f3 {[%clk 0:00:10.2]} 46... Kf4 {[%clk 0:00:37.8]}
47. Kxd4 {[%clk 0:00:10.6]} 47... Kxf3 {[%clk 0:00:37.8]} 48. Ke5 {[%clk
0:00:09.9]} 48... g4 {[%clk 0:00:38.7]} 49. Kf6 {[%clk 0:00:09.6]} 49... g3
{[%clk 0:00:39.6]} 50. Kg6 {[%clk 0:00:09.9]} 50... g2 {[%clk 0:00:40.5]} 51.
Kxh6 {[%clk 0:00:10.8]} 51... g1=Q {[%clk 0:00:41.4]} 52. Kh7 {[%clk 0:00:10.3]}
52... Kf4 {[%clk 0:00:42.3]} 53. h6 {[%clk 0:00:11.2]} 53... Kf5 {[%clk
0:00:43]} 54. Kh8 {[%clk 0:00:11.9]} 54... Kf6 {[%clk 0:00:41.9]} 55. b4 {[%clk
0:00:11.3]} 55... Kf7 {[%clk 0:00:40.8]} 56. Kh7 {[%clk 0:00:09.5]} 56... Qg8#
{[%clk 0:00:39.9]} 0-1

[Event "*** Titled Tuesday Blitz"]
[Site "Chess.com"]
[Date "2020.04.28"]
[Round "9"]
[White "mbachez"]
[Black "Murad_Ibrahimli"]
[Result "0-1"]
[WhiteElo "2495"]
[BlackElo "2738"]
[TimeControl "180+1"]
[EndTime "11:47:08 PDT"]
[Termination "Murad_Ibrahimli won on time"]

1. e4 {[%clk 0:03:00.9]} 1... c5 {[%clk 0:02:59.2]} 2. Nf3 {[%clk 0:02:52.3]}
2... d6 {[%clk 0:02:58.6]} 3. Bc4 {[%clk 0:02:51.2]} 3... Nc6 {[%clk 0:02:55.2]}
4. c3 {[%clk 0:02:50.9]} 4... Nf6 {[%clk 0:02:52.5]} 5. Qe2 {[%clk 0:02:50.5]}
5... e6 {[%clk 0:02:48.1]} 6. Bb3 {[%clk 0:02:50.6]} 6... Be7 {[%clk 0:02:47.5]}
7. O-O {[%clk 0:02:50.6]} 7... O-O {[%clk 0:02:46.9]} 8. d4 {[%clk 0:02:50.7]}
8... cxd4 {[%clk 0:02:45.6]} 9. cxd4 {[%clk 0:02:51.6]} 9... Re8 {[%clk
0:02:14.5]} 10. Nc3 {[%clk 0:02:48.4]} 10... a6 {[%clk 0:02:05.8]} 11. e5 {[%clk
0:02:46.9]} 11... dxe5 {[%clk 0:02:04]} 12. dxe5 {[%clk 0:02:47]} 12... Nd7
{[%clk 0:02:04.2]} 13. Bf4 {[%clk 0:02:44.6]} 13... Nf8 {[%clk 0:01:59.3]} 14.
Rfd1 {[%clk 0:02:40.8]} 14... Qb6 {[%clk 0:01:56.5]} 15. Ne4 {[%clk 0:02:35.8]}
15... Ng6 {[%clk 0:01:55.3]} 16. Be3 {[%clk 0:02:14.2]} 16... Qc7 {[%clk
0:01:52.7]} 17. Nd6 {[%clk 0:02:13.5]} 17... Rd8 {[%clk 0:01:51.3]} 18. Nc4
{[%clk 0:02:09.7]} 18... Rxd1+ {[%clk 0:01:49]} 19. Rxd1 {[%clk 0:02:05.8]}
19... b5 {[%clk 0:01:47.1]} 20. Nb6 {[%clk 0:01:11.8]} 20... Rb8 {[%clk
0:01:45.2]} 21. Nxc8 {[%clk 0:01:10.1]} 21... Rxc8 {[%clk 0:01:44.1]} 22. Rc1
{[%clk 0:01:05.8]} 22... Qd7 {[%clk 0:01:36.2]} 23. Rd1 {[%clk 0:00:51]} 23...
Qe8 {[%clk 0:01:34.5]} 24. Bb6 {[%clk 0:00:45]} 24... Bd8 {[%clk 0:01:24.4]} 25.
Bc5 {[%clk 0:00:40.1]} 25... Ncxe5 {[%clk 0:01:22.7]} 26. Nxe5 {[%clk
0:00:30.3]} 26... Rxc5 {[%clk 0:01:22.5]} 27. Nxf7 {[%clk 0:00:25.1]} 27... Kxf7
{[%clk 0:01:16.8]} 28. Rxd8 {[%clk 0:00:21.9]} 28... Rc1+ {[%clk 0:01:10.8]} 29.
Rd1 {[%clk 0:00:21.5]} 29... Rxd1+ {[%clk 0:01:11]} 30. Qxd1 {[%clk 0:00:20.4]}
30... Qc6 {[%clk 0:01:11.3]} 31. h3 {[%clk 0:00:19]} 31... a5 {[%clk 0:01:08.3]}
32. a4 {[%clk 0:00:18.2]} 32... bxa4 {[%clk 0:01:07.1]} 33. Bxa4 {[%clk
0:00:17.9]} 33... Qb7 {[%clk 0:01:07.2]} 34. b3 {[%clk 0:00:17.6]} 34... Ne7
{[%clk 0:01:01]} 35. Qd2 {[%clk 0:00:16.8]} 35... Qb4 {[%clk 0:00:59.3]} 36. Qd7
{[%clk 0:00:15.5]} 36... Qe1+ {[%clk 0:00:58.7]} 37. Kh2 {[%clk 0:00:15.7]}
37... Qe5+ {[%clk 0:00:56.4]} 38. Kg1 {[%clk 0:00:15.8]} 38... Qe1+ {[%clk
0:00:55.1]} 39. Kh2 {[%clk 0:00:15.7]} 39... Qe5+ {[%clk 0:00:55.6]} 40. g3
{[%clk 0:00:15.5]} 40... Qc5 {[%clk 0:00:55.2]} 41. Qe8+ {[%clk 0:00:14.1]}
41... Kf6 {[%clk 0:00:54.4]} 42. Qf8+ {[%clk 0:00:14.4]} 42... Kg6 {[%clk
0:00:54]} 43. Be8+ {[%clk 0:00:13.1]} 43... Kh6 {[%clk 0:00:53.4]} 44. Qf4+
{[%clk 0:00:12.8]} 44... Qg5 {[%clk 0:00:53.4]} 45. Qd4 {[%clk 0:00:08.9]} 45...
g6 {[%clk 0:00:32.8]} 46. f4 {[%clk 0:00:07.7]} 46... Qf5 {[%clk 0:00:27]} 47.
g4 {[%clk 0:00:05.7]} 47... Qc2+ {[%clk 0:00:25.3]} 48. Kg3 {[%clk 0:00:05.9]}
48... Qxb3+ {[%clk 0:00:24.6]} 49. Kh4 {[%clk 0:00:06.2]} 49... Nf5+ {[%clk
0:00:18.8]} 50. gxf5 {[%clk 0:00:06.2]} 50... exf5 {[%clk 0:00:19.4]} 51. Qf6
{[%clk 0:00:03.5]} 51... Qb4 {[%clk 0:00:18.2]} 52. Qg5+ {[%clk 0:00:03.6]}
52... Kg7 {[%clk 0:00:18.1]} 53. Bc6 {[%clk 0:00:01.4]} 53... Qe1+ {[%clk
0:00:17.9]} 54. Qg3 {[%clk 0:00:01.4]} 54... Qe7+ {[%clk 0:00:18.4]} 0-1

[Event "*** Titled Tuesday Blitz"]
[Site "Chess.com"]
[Date "2020.04.28"]
[Round "9"]
[White "Sweafty"]
[Black "Quattroporte300"]
[Result "1-0"]
[WhiteElo "2455"]
[BlackElo "2298"]
[TimeControl "180+1"]
[EndTime "11:47:09 PDT"]
[Termination "Sweafty won by resignation"]

1. Nf3 {[%clk 0:03:00.9]} 1... Nf6 {[%clk 0:02:58.4]} 2. c4 {[%clk 0:02:55.3]}
2... e6 {[%clk 0:02:57.6]} 3. g3 {[%clk 0:02:54.4]} 3... d5 {[%clk 0:02:56.6]}
4. Bg2 {[%clk 0:02:55.3]} 4... dxc4 {[%clk 0:02:53.8]} 5. O-O {[%clk 0:02:52.4]}
5... c5 {[%clk 0:02:52.2]} 6. Qa4+ {[%clk 0:02:50.8]} 6... Nbd7 {[%clk
0:02:49.1]} 7. Qxc4 {[%clk 0:02:50.3]} 7... a6 {[%clk 0:02:46.4]} 8. d3 {[%clk
0:02:38.8]} 8... b5 {[%clk 0:02:41.9]} 9. Qc2 {[%clk 0:02:39.4]} 9... Bb7 {[%clk
0:02:42.2]} 10. a4 {[%clk 0:02:39.9]} 10... Bd6 {[%clk 0:02:36.4]} 11. Nc3
{[%clk 0:02:35.2]} 11... b4 {[%clk 0:02:35.3]} 12. Nb1 {[%clk 0:02:34.7]} 12...
O-O {[%clk 0:02:35.1]} 13. b3 {[%clk 0:02:33.1]} 13... Rc8 {[%clk 0:02:24.6]}
14. Bb2 {[%clk 0:02:32.5]} 14... Bd5 {[%clk 0:02:18.1]} 15. Nbd2 {[%clk
0:02:19.3]} 15... Bb7 {[%clk 0:02:10.5]} 16. Rac1 {[%clk 0:02:18]} 16... Qe7
{[%clk 0:02:08.1]} 17. Nc4 {[%clk 0:02:16.6]} 17... Bb8 {[%clk 0:02:05.2]} 18.
Na5 {[%clk 0:02:01.9]} 18... Ba8 {[%clk 0:02:02.5]} 19. Ne1 {[%clk 0:02:01.4]}
19... Bxg2 {[%clk 0:02:01.4]} 20. Nxg2 {[%clk 0:02:02.3]} 20... Nb6 {[%clk
0:01:54]} 21. Nc4 {[%clk 0:02:00]} 21... Nbd5 {[%clk 0:01:45.9]} 22. Rfd1 {[%clk
0:01:45.1]} 22... h6 {[%clk 0:01:41.2]} 23. e4 {[%clk 0:01:44.7]} 23... Nc3
{[%clk 0:01:29.4]} 24. Bxc3 {[%clk 0:01:44]} 24... bxc3 {[%clk 0:01:29.6]} 25.
Qxc3 {[%clk 0:01:44.9]} 25... Rfd8 {[%clk 0:01:23.2]} 26. Nge3 {[%clk
0:01:38.2]} 26... Qc7 {[%clk 0:01:05.4]} 27. Qc2 {[%clk 0:01:33.7]} 27... Qb7
{[%clk 0:00:55.4]} 28. Rb1 {[%clk 0:01:29.4]} 28... Rd4 {[%clk 0:00:50.3]} 29.
Qe2 {[%clk 0:01:28.1]} 29... Rcd8 {[%clk 0:00:48]} 30. Nc2 {[%clk 0:01:27.9]}
30... R4d7 {[%clk 0:00:44.8]} 31. N2e3 {[%clk 0:01:13.3]} 31... Rd4 {[%clk
0:00:42.2]} 32. Na3 {[%clk 0:01:09]} 32... Rb4 {[%clk 0:00:20.6]} 33. Nac4
{[%clk 0:01:03.3]} 33... Bc7 {[%clk 0:00:18.9]} 34. Qc2 {[%clk 0:00:52.4]} 34...
Qc6 {[%clk 0:00:17.1]} 35. Qc3 {[%clk 0:00:46.9]} 35... Rbb8 {[%clk 0:00:15.8]}
36. Nc2 {[%clk 0:00:46.8]} 36... Rbc8 {[%clk 0:00:08.7]} 37. f3 {[%clk 0:00:47]}
37... Bb8 {[%clk 0:00:08.7]} 38. Kg2 {[%clk 0:00:47.4]} 38... Qb7 {[%clk
0:00:09.1]} 39. Qd2 {[%clk 0:00:42.5]} 39... Qc7 {[%clk 0:00:09.2]} 40. Qe2
{[%clk 0:00:42.6]} 40... Qb7 {[%clk 0:00:09.3]} 41. b4 {[%clk 0:00:39.5]} 41...
cxb4 {[%clk 0:00:08.5]} 42. Nxb4 {[%clk 0:00:40.4]} 42... Qc7 {[%clk 0:00:08.8]}
43. Nxa6 {[%clk 0:00:39.8]} 43... Qc6 {[%clk 0:00:06.5]} 44. Nxb8 {[%clk
0:00:40.2]} 44... Rxb8 {[%clk 0:00:06.7]} 45. Qc2 {[%clk 0:00:37.2]} 45... Rxb1
{[%clk 0:00:06.4]} 46. Rxb1 {[%clk 0:00:37]} 46... Ra8 {[%clk 0:00:06.3]} 47.
Ra1 {[%clk 0:00:31.4]} 47... Nd7 {[%clk 0:00:06.7]} 48. a5 {[%clk 0:00:30.1]}
48... Ra6 {[%clk 0:00:06.2]} 49. Qb3 {[%clk 0:00:27.9]} 49... Nc5 {[%clk
0:00:05.3]} 50. Qb8+ {[%clk 0:00:28.2]} 50... Kh7 {[%clk 0:00:05.9]} 51. Qd8
{[%clk 0:00:24.5]} 51... Nb7 {[%clk 0:00:04.4]} 52. Qd4 {[%clk 0:00:21.9]} 52...
Nc5 {[%clk 0:00:03.3]} 53. Ra3 {[%clk 0:00:22.3]} 53... Ra7 {[%clk 0:00:02.4]}
54. Ne5 {[%clk 0:00:21.6]} 54... Qc7 {[%clk 0:00:02.6]} 55. Nc4 {[%clk
0:00:19.7]} 55... Ra6 {[%clk 0:00:02.9]} 56. Rc3 {[%clk 0:00:20]} 56... Ra7
{[%clk 0:00:03.1]} 57. Ne5 {[%clk 0:00:20.3]} 57... Qxa5 {[%clk 0:00:03.2]} 58.
Qxc5 {[%clk 0:00:18.8]} 1-0

[Event "*** Titled Tuesday Blitz"]
[Site "Chess.com"]
[Date "2020.04.28"]
[Round "9"]
[White "csati17"]
[Black "Batsai"]
[Result "1-0"]
[WhiteElo "2463"]
[BlackElo "2264"]
[TimeControl "180+1"]
[EndTime "11:47:11 PDT"]
[Termination "csati17 won by checkmate"]

1. c4 {[%clk 0:03:00.9]} 1... Nf6 {[%clk 0:02:56]} 2. Nc3 {[%clk 0:03:00.6]}
2... e6 {[%clk 0:02:54.9]} 3. e4 {[%clk 0:03:00.6]} 3... e5 {[%clk 0:02:46.4]}
4. Nf3 {[%clk 0:02:58.4]} 4... Nc6 {[%clk 0:02:45.9]} 5. d4 {[%clk 0:02:57.1]}
5... exd4 {[%clk 0:02:43.5]} 6. Nxd4 {[%clk 0:02:58]} 6... Bb4 {[%clk
0:02:25.7]} 7. Nxc6 {[%clk 0:02:39.9]} 7... bxc6 {[%clk 0:02:25.1]} 8. e5 {[%clk
0:02:24.8]} 8... Ne4 {[%clk 0:02:24.5]} 9. Qd4 {[%clk 0:02:19.6]} 9... Nxc3
{[%clk 0:01:58.9]} 10. bxc3 {[%clk 0:02:20.5]} 10... Be7 {[%clk 0:01:59.7]} 11.
Bd3 {[%clk 0:02:11.3]} 11... O-O {[%clk 0:01:45.9]} 12. O-O {[%clk 0:02:11.1]}
12... d5 {[%clk 0:01:45]} 13. Rd1 {[%clk 0:01:57.2]} 13... Be6 {[%clk
0:01:30.9]} 14. Be3 {[%clk 0:01:42.6]} 14... Qc8 {[%clk 0:01:15.6]} 15. cxd5
{[%clk 0:01:35.1]} 15... cxd5 {[%clk 0:01:16.5]} 16. Qf4 {[%clk 0:01:21.1]}
16... c5 {[%clk 0:01:07.6]} 17. Qg3 {[%clk 0:01:03.5]} 17... Re8 {[%clk
0:00:53.8]} 18. f4 {[%clk 0:00:58.5]} 18... Rd8 {[%clk 0:00:40.5]} 19. Qf3
{[%clk 0:00:47.3]} 19... Bg4 {[%clk 0:00:37.6]} 20. Qg3 {[%clk 0:00:43.3]} 20...
Bxd1 {[%clk 0:00:37.7]} 21. Rxd1 {[%clk 0:00:44.2]} 21... d4 {[%clk 0:00:32.1]}
22. cxd4 {[%clk 0:00:42]} 22... cxd4 {[%clk 0:00:33]} 23. Bf2 {[%clk 0:00:42.5]}
23... g6 {[%clk 0:00:27.4]} 24. f5 {[%clk 0:00:42.4]} 24... Bf8 {[%clk
0:00:12.8]} 25. e6 {[%clk 0:00:41.2]} 25... fxe6 {[%clk 0:00:08.2]} 26. fxg6
{[%clk 0:00:40.9]} 26... h6 {[%clk 0:00:08.4]} 27. Qh3 {[%clk 0:00:20.3]} 27...
Bg7 {[%clk 0:00:07.1]} 28. Re1 {[%clk 0:00:19.7]} 28... Re8 {[%clk 0:00:06.4]}
29. Bg3 {[%clk 0:00:13.1]} 29... Qd7 {[%clk 0:00:05]} 30. Be5 {[%clk 0:00:12.3]}
30... Rad8 {[%clk 0:00:04.5]} 31. Qh5 {[%clk 0:00:10.9]} 31... Qd5 {[%clk
0:00:03.2]} 32. g3 {[%clk 0:00:09.9]} 32... Rf8 {[%clk 0:00:02.8]} 33. Qe2
{[%clk 0:00:06.1]} 33... Rb8 {[%clk 0:00:02.8]} 34. Bxg7 {[%clk 0:00:06]} 34...
Kxg7 {[%clk 0:00:01.9]} 35. Rc1 {[%clk 0:00:06.3]} 35... Rbc8 {[%clk 0:00:01.8]}
36. Rb1 {[%clk 0:00:06.2]} 36... Qd6 {[%clk 0:00:02]} 37. Rb7+ {[%clk
0:00:05.9]} 37... Rc7 {[%clk 0:00:02.9]} 38. Rb1 {[%clk 0:00:06.5]} 38... Rc6
{[%clk 0:00:03.1]} 39. Re1 {[%clk 0:00:06.1]} 39... Rc7 {[%clk 0:00:04]} 40. Qe4
{[%clk 0:00:05.4]} 40... e5 {[%clk 0:00:03.8]} 41. Rb1 {[%clk 0:00:04.6]} 41...
Qf6 {[%clk 0:00:03.6]} 42. Kg2 {[%clk 0:00:04.1]} 42... Qf2+ {[%clk 0:00:03.7]}
43. Kh3 {[%clk 0:00:04.7]} 43... Qf6 {[%clk 0:00:04.6]} 44. Rf1 {[%clk 0:00:04]}
44... h5 {[%clk 0:00:05.5]} 45. Rxf6 {[%clk 0:00:03.7]} 45... Rxf6 {[%clk
0:00:06.4]} 46. Qxe5 {[%clk 0:00:04]} 46... Rd7 {[%clk 0:00:05.7]} 47. g4 {[%clk
0:00:03.9]} 47... hxg4+ {[%clk 0:00:05.2]} 48. Kxg4 {[%clk 0:00:04.8]} 48... Rd6
{[%clk 0:00:05.3]} 49. h4 {[%clk 0:00:04.9]} 49... Re6 {[%clk 0:00:06.2]} 50.
Qxd4 {[%clk 0:00:04.6]} 50... Rd6 {[%clk 0:00:05.8]} 51. Qxa7+ {[%clk
0:00:04.7]} 51... Kg8 {[%clk 0:00:04.4]} 52. Bc4+ {[%clk 0:00:04.7]} 52... Kf8
{[%clk 0:00:04.8]} 53. g7+ {[%clk 0:00:05]} 53... Ke8 {[%clk 0:00:04.8]} 54.
g8=Q+ {[%clk 0:00:05.4]} 54... Rf8 {[%clk 0:00:02.7]} 55. Bf7+ {[%clk
0:00:05.6]} 55... Kd8 {[%clk 0:00:02.4]} 56. Qxf8# {[%clk 0:00:06.5]} 1-0